[Event "55th Biel Festival ATO 2022"]
[Site "Biel"]
[Date "2022.07.18"]
[Round "5.5"]
[White "Al Helaoy Majed"]
[Black "Schnell, Simon"]
[Result "1-0"]
[ECO "B12"]
[WhiteElo "2015"]
[BlackElo "1847"]
[Annotator "TA"]
[PlyCount "121"]
[EventDate "2022.07.13"]
[EventType "swiss"]
[EventCountry "SUI"]
[SourceTitle "playchess.com"]
[Source "ChessBase"]
[SourceQuality "1"]
[TimeControl "40/5400+30:1800+30"]

{[%evp 9,121,16,20,20,17,20,20,-14,-10,-40,0,0,0,0,0,24,0,15,18,21,15,18,23,-19,-22,-21,-16,-22,-22,-31,-21,-17,-25,-27,33,23,51,56,43,20,18,-59,0,0,0,-118,-113,-109,-105,-116,-106,-120,-109,-105,-93,-108,-122,-126,-16,-16,-15,-15,0,0,0,0,0,0,0,0,0,0,0,0,0,0,124,151,143,128,108,0,29972,0,29973,29974,29974,29975,29975,29976,29976,29977,29977,29978,29979,29980,29980,29981,29978,29979,29982,29983,29983,29984,29984,29983,29983,29984,29984,29985,29985,29986,29986,29987]} 1. e4 {[%emt 0:00:01]} c6 {[%emt 0:00:09]} 2. d4 {[%emt 0:00:42]} d5 {[%emt 0:00:05]} 3. e5 {[%emt 0:00:05]} Bf5 {[%emt 0:00:09]} 4. h4 {[%emt 0:00:54]} Qc7 {[%emt 0:00:06]} 5. Nc3 {[%emt 0:03:37][%cal Bb1c3,Bc3b5,Bb5d6][%mdl 32]} h5 {[%emt 0:00:07]} 6. Bd3 {[%emt 0:00:17] B12: Caro-Kann: Advance Variation.} Bxd3 {[%emt 0:00:15]} 7. Qxd3 {[%emt 0:02:05][%cal Oe5e6] Hoping for e6!} e6 {[%emt 0:00:08] [#]} 8. Nh3 $146 {[%emt 0:02:51] The position is equal.} ({Predecessor:} 8. Nf3 Nd7 9. Bg5 Ne7 10. O-O Nf5 11. Ne2 c5 12. c3 c4 13. Qd2 Be7 14. Ng3 {1-0 (65) Martinez Alcantara,J (2615)-Jobava,B (2588) Chess.com INT 2022}) 8... c5 {[%emt 0:02:26]} 9. Nb5 {[%emt 0:03:22]} Qb6 {[%emt 0:18:37]} 10. dxc5 {[%emt 0:07:22]} Bxc5 {[%emt 0:02:37]} 11. Be3 {[%emt 0:00:06]} Bxe3 {[%emt 0:12:03]} 12. Nd6+ {[%emt 0:01:44]} Kf8 {[%emt 0:00:09]} 13. fxe3 {[%emt 0:00:11]} Qb4+ {[%emt 0:05:27]} 14. c3 {[%emt 0:11:57]} Qxh4+ {[%emt 0:03:39]} 15. Kd2 $1 {[%emt 0:01:25]} Nc6 {[%emt 0:01:50] [#] Strongly threatening ...Qe7.} 16. Nxf7 $1 {[%emt 0:21:47][%mdl 64] Decoy} Kxf7 {[%emt 0:06:01]} 17. Raf1+ {[%emt 0:06:50] [#]} Nf6 $1 {[%emt 0:03:40]} 18. exf6 {[%emt 0:00:08] Chess con chili.} gxf6 {[%emt 0:02:34]} 19. Nf4 {[%emt 0:00:23]} Qg5 {[%emt 0:02:32] Inhibits Qg6+.} 20. Qb5 {[%emt 0:00:24][%cal Oh1h5] And now Rxh5! would win.} Rab8 {[%emt 0:10:20]} 21. Kc1 {[%emt 0:01:57]} Ne5 {[%emt 0:05:58]} ({Black should play} 21... h4 $11) 22. Qa5 $14 {[%emt 0:01:50] Qc7+ is the strong threat.} Nd3+ {[%emt 0:08:23]} 23. Kb1 {[%emt 0:06:00]} ({But not} 23. Nxd3 Qxe3+ 24. Kc2 Qe2+ 25. Kc1 Qe3+ 26. Kc2 Qe2+ 27. Kc1 Qe3+ $11) 23... Nxf4 {[%emt 0:00:39]} 24. Qc7+ {[%emt 0:00:02]} Kg6 {[%emt 0:00:16]} 25. Rxf4 {[%emt 0:00:32]} (25. exf4 $11 Qf5+ 26. Ka1) 25... f5 {[%emt 0:03:34]} (25... Qxg2 $2 26. Rff1 Qe4+ 27. Ka1 $18) (25... Qe5 $1 $15 26. Qa5 (26. Qe7 Rh7 $15) 26... d4 27. Qxe5 fxe5) 26. Rf3 $11 {[%emt 0:03:04]} Kf6 {[%emt 0:02:37]} 27. Rg3 {[%emt 0:00:43]} (27. Rhf1 $11) 27... Rbc8 $17 {[%emt 0:01:47]} 28. Qd6 {[%emt 0:03:02]} Rc6 {[%emt 0:01:07]} 29. Rxg5 {[%emt 0:02:37]} Rxd6 {[%emt 0:00:04]} 30. Rgxh5 {[%emt 0:00:20]} Rxh5 {[%emt 0:00:07]} 31. Rxh5 {[%emt 0:00:04][%mdl 4096] Endgame [#] KR-KR} Rd7 $1 {[%emt 0:00:06] Inhibits Rh7.} 32. Kc2 {[%emt 0:01:17]} Rg7 {[%emt 0:00:12]} 33. Rh2 {[%emt 0:00:10]} Rg3 {[%emt 0:01:07]} (33... Rg4 $17 34. Kd3 b5) 34. Kd2 $1 $11 {[%emt 0:00:12]} Ke5 {[%emt 0:00:49]} 35. Ke2 $1 {[%emt 0:00:17]} Ke4 {[%emt 0:01:41]} 36. Rh4+ {[%emt 0:01:17]} Rg4 {[%emt 0:01:29]} 37. Rxg4+ {[%emt 0:09:56]} fxg4 {[%emt 0:00:08] KP-KP} 38. a4 {[%emt 0:00:21]} b6 {[%emt 0:03:30]} 39. Kd2 {[%emt 0:01:35]} a6 {[%emt 0:01:43]} 40. Ke2 {[%emt 0:00:57]} b5 {[%emt 0:01:38]} 41. axb5 {[%emt 0:16:20]} axb5 {[%emt 0:00:05]} 42. b3 {[%emt 0:01:18]} Kf5 {[%emt 0:20:18]} (42... e5 $11) 43. Kd3 $16 {[%emt 0:00:07] aiming for Kd4.} Ke5 {[%emt 0:02:12]} 44. g3 {[%emt 0:00:55]} Kd6 {[%emt 0:01:58]} 45. Kd4 {[%emt 0:00:33]} (45. e4 $16 {Black must now prevent Kd4.} Ke5 46. exd5 exd5 47. Ke3) 45... e5+ $11 {[%emt 0:00:55] Black is now going downhill.} 46. Kd3 {[%emt 0:00:02]} Kd7 $2 {[%emt 0:04:23][%mdl 8192]} (46... b4 $11) 47. e4 {[%emt 0:00:35] White mates.} Kd6 {[%emt 0:00:00]} 48. exd5 {[%emt 0:00:23]} Kxd5 {[%emt 0:00:07] [#]} 49. c4+ $1 {[%emt 0:01:55]} bxc4+ {[%emt 0:00:17]} 50. bxc4+ {[%emt 0:00:01] KPP-KPP} Kc5 {[%emt 0:00:16]} 51. Ke4 {[%emt 0:00:25]} Kxc4 {[%emt 0:00:07]} 52. Kxe5 {[%emt 0:00:04] KP-KP} Kc5 {[%emt 0:00:24]} 53. Kf5 {[%emt 0:00:38]} Kd6 {[%emt 0:00:23]} 54. Kxg4 {[%emt 0:00:08] KP-K} Ke6 {[%emt 0:03:17]} 55. Kg5 {[%emt 0:00:31]} Kf7 {[%emt 0:00:33]} 56. Kh6 {[%emt 0:00:18]} Kf8 {[%emt 0:01:31]} 57. Kh7 {[%emt 0:01:17]} Kf7 {[%emt 0:00:04]} 58. g4 {[%emt 0:00:14][%cal Bg3g4,Bg4g5][%mdl 32]} Kf6 {[%emt 0:00:04]} 59. Kh6 {[%emt 0:00:09]} Kf7 {[%emt 0:00:09]} 60. g5 {[%emt 0:00:24]} Kg8 {[%emt 0:00:10]} 61. Kg6 {[%emt 0:00:06] Weighted Error Value: White=0.11 (very precise) /Black=0.19 (very precise)} 1-0

[Event "55th Biel Festival ATO 2022"]
[Site "Biel"]
[Date "2022.07.18"]
[Round "5.6"]
[White "Marty, Fridolin"]
[Black "Schneuwly Achim"]
[Result "1/2-1/2"]
[ECO "B40"]
[WhiteElo "1867"]
[BlackElo "2002"]
[Annotator "TA"]
[PlyCount "112"]
[EventDate "2022.07.13"]
[EventType "swiss"]
[EventCountry "SUI"]
[SourceTitle "playchess.com"]
[Source "ChessBase"]
[SourceQuality "1"]
[TimeControl "40/5400+30:1800+30"]

{[%evp 9,112,2,12,16,12,10,14,0,1,0,8,13,10,16,25,-39,28,15,57,19,46,68,62,51,49,0,0,0,22,-9,0,0,0,0,34,12,22,26,11,0,0,-225,-28,-52,-16,-195,-232,-257,-142,-239,-229,-247,-212,-206,0,-64,357,361,264,326,600,585,1036,968,927,922,832,827,5614,141,140,141,141,141,141,141,141,141,116,116,116,116,116,116,116,116,116,0,90,0,116,113,108,108,123,116,116,108,159,159,159,123,123,0,152]} 1. e4 {[%emt 0:00:20]} c5 {[%emt 0:00:05]} 2. Nf3 {[%emt 0:00:23]} e6 {[%emt 0:00:32]} 3. g3 {[%emt 0:01:07]} Nc6 {[%emt 0:01:17]} 4. Bg2 {[%emt 0:00:25]} Nf6 {[%emt 0:00:33]} 5. Nc3 {[%emt 0:01:19]} Be7 {[%emt 0:02:30]} 6. O-O {[%emt 0:00:44] B40: Sicilian: 2...e6, Unusual lines.} O-O {[%emt 0:00:43]} 7. Re1 {[%emt 0:03:45]} d6 {[%emt 0:05:24]} 8. h3 {[%emt 0:02:10]} Bd7 {[%emt 0:04:17]} 9. d3 {[%emt 0:05:25] [#]} Nd4 $146 {[%emt 0:04:58]} ({Predecessor:} 9... Qc7 10. Bg5 h6 11. Be3 e5 12. g4 Rae8 13. Qd2 Nd4 14. Bxd4 cxd4 15. Ne2 Bd8 16. Rec1 {1-0 (61) Enzmann,S (2155)-Steinkohl,T (2211) Germany 2016}) 10. Nxd4 {[%emt 0:06:19]} cxd4 {[%emt 0:00:08]} 11. Ne2 {[%emt 0:00:08]} Qb6 {[%emt 0:07:00]} 12. c4 {[%emt 0:02:52]} (12. a4 $11) 12... dxc3 {[%emt 0:02:23]} (12... e5 $15) 13. bxc3 {[%emt 0:03:48]} Rac8 {[%emt 0:05:11]} 14. Be3 {[%emt 0:02:47]} Qa6 {[%emt 0:00:22]} 15. a4 {[%emt 0:03:03]} d5 {[%emt 0:09:36]} 16. e5 {[%emt 0:05:08] And now Bg5 would win.} Ne8 {[%emt 0:00:07]} 17. d4 {[%emt 0:02:02]} (17. Qd2 $14 {deserves consideration.}) 17... Rc4 $11 {[%emt 0:04:27][%cal Rc4a4]} 18. a5 {[%emt 0:01:01]} Nc7 {[%emt 0:10:24]} 19. Bf1 {[%emt 0:03:35]} Bb5 {[%emt 0:00:06]} 20. Bd2 {[%emt 0:01:31]} Rc6 {[%emt 0:01:31]} 21. Bg2 {[%emt 0:06:50]} Bxe2 {[%emt 0:03:56]} 22. Rxe2 {[%emt 0:00:37]} Nb5 {[%emt 0:00:25]} 23. Re3 {[%emt 0:01:37] Bf1 is the strong threat.} Na3 {[%emt 0:00:26] [#]} 24. Rxa3 $1 {[%emt 0:09:40]} Bxa3 {[%emt 0:00:18]} 25. Bf1 $2 {[%emt 0:00:51] [#]} (25. c4 $11 Qxc4 26. Rxa3) 25... Rc4 $1 {[%emt 0:08:33][%mdl 512]} 26. Bd3 {[%emt 0:06:20]} (26. Qb3 Be7) 26... Qxa5 {[%emt 0:04:22]} 27. Qh5 $2 {[%emt 0:02:55]} (27. Qb1 $1 $11 {and White has nothing to worry.}) 27... g6 $19 {[%emt 0:00:13]} 28. Qh4 {[%emt 0:03:02]} Qd8 {[%emt 0:00:33]} 29. Qh6 {[%emt 0:06:35] [#]} (29. Qxd8 $17 Rxd8 30. Bxc4 dxc4 31. Re1) 29... Re8 $1 {[%emt 0:03:51]} 30. h4 {[%emt 0:01:15]} (30. Bxc4 dxc4) 30... Bf8 {[%emt 0:00:31]} 31. Qf4 {[%emt 0:00:12]} h5 $2 {[%emt 0:04:07]} 32. Rf3 {[%emt 0:06:52]} (32. Bxc4 $11 dxc4 33. Rf3) 32... Qe7 $2 {[%emt 0:00:21][%mdl 8192] [#]} 33. g4 $1 $18 {[%emt 0:00:55]} ({Less strong is} 33. Bxc4 dxc4 34. g4 a5 $16) 33... hxg4 {[%emt 0:03:33]} 34. Qxg4 {[%emt 0:00:31]} Bg7 $2 {[%emt 0:01:54]} (34... Qc7 35. h5 Qxe5) 35. h5 {[%emt 0:01:16]} Rec8 {[%emt 0:08:13]} 36. hxg6 {[%emt 0:03:22]} f5 {[%emt 0:02:54]} 37. exf6 {[%emt 0:01:55]} Bxf6 {[%emt 0:00:06]} 38. Qh5 {[%emt 0:03:30] Threatening mate with Rxf6.} Rxc3 {[%emt 0:01:54]} 39. g7 $2 {[%emt 0:02:27]} (39. Rxf6 $18 {White threatens Rf7 and mate.} Rxd3 40. Rf7) 39... Qxg7+ $16 {[%emt 0:01:12]} 40. Rg3 {[%emt 0:00:08] Dancing on a razor blade.} Rxd3 {[%emt 0:00:06]} 41. Rxg7+ {[%emt 0:30:13]} Bxg7 {[%emt 0:30:20] [#]} 42. Qg6 $1 {[%emt 0:00:00][%csl LRd3,LRe6]} Rxd2 {[%emt 0:00:00]} 43. Qxe6+ {[%emt 0:00:00]} Kh7 {[%emt 0:00:00]} 44. Qxc8 {[%emt 0:00:00] Black must now prevent Qf5+.} Rxd4 {[%emt 0:00:00]} (44... Bxd4 $2 45. Qf5+ Kh8 46. Qh5+ Kg8 47. Qg5+ Kf8 48. Qxd2 $18) 45. Qxb7 {[%emt 0:00:00][%mdl 4096] Endgame KQ-KRB} a5 {[%emt 0:00:00]} 46. Qb1+ {[%emt 0:00:00][%mdl 1024] White has strong compensation.} Kg8 {[%emt 0:00:00]} 47. Qb8+ {[%emt 0:00:00]} Kh7 {[%emt 0:00:00]} 48. Qb1+ {[%emt 0:00:00]} Kg8 $1 {[%emt 0:00:00]} 49. Qb8+ {[%emt 0:00:00]} ({Better is} 49. Qg6 $16) 49... Kf7 {[%emt 0:00:00]} (49... Kh7 $11 {remains equal.}) 50. Qc7+ {[%emt 0:00:00]} Kg6 {[%emt 0:00:00]} 51. Qxa5 {[%emt 0:00:00]} Rg4+ {[%emt 0:00:00]} 52. Kf1 {[%emt 0:00:00]} d4 {[%emt 0:00:00]} 53. Qd5 {[%emt 0:00:00]} Rg5 {[%emt 0:00:00]} (53... Bh6 $142 54. Qe6+ Kg5 55. Qg8+ Kh5 56. Qe8+ Kg5 57. Qb5+ Kg6) 54. Qe4+ {[%emt 0:00:00]} Rf5 {[%emt 0:00:00]} 55. Qg4+ {[%emt 0:00:00]} Rg5 {[%emt 0:00:00]} 56. Qe4+ {[%emt 0:00:00]} Rf5 $1 {[%emt 0:01:39] Both players deserved the win here.  Weighted Error Value: White=0.39/Black=0.43} 1/2-1/2

[Event "55th Biel Festival ATO 2022"]
[Site "Biel"]
[Date "2022.07.18"]
[Round "5.7"]
[White "Wanner Stefan"]
[Black "Herold, Hansjoerg"]
[Result "1-0"]
[ECO "C50"]
[WhiteElo "1975"]
[BlackElo "1843"]
[Annotator "TA"]
[PlyCount "61"]
[EventDate "2022.07.13"]
[EventType "swiss"]
[EventCountry "SUI"]
[SourceTitle "playchess.com"]
[Source "ChessBase"]
[SourceQuality "1"]
[TimeControl "40/5400+30:1800+30"]

{[%evp 16,61,23,0,12,8,47,29,60,13,64,63,102,50,98,87,90,81,141,68,77,60,71,61,115,99,103,95,93,96,110,45,53,19,69,47,72,65,95,60,66,59,108,73,638,615,646,639]} 1. e4 {[%emt 0:00:02]} e5 {[%emt 0:00:18]} 2. d4 {[%emt 0:00:24]} exd4 {[%emt 0:00:27]} 3. Nf3 {[%emt 0:00:10]} Nc6 {[%emt 0:00:17]} 4. Bc4 {[%emt 0:00:07]} d6 {[%emt 0:03:55]} 5. Nxd4 {[%emt 0:03:29]} Nf6 {[%emt 0:03:46]} 6. Nxc6 {[%emt 0:02:36]} bxc6 {[%emt 0:00:19]} 7. Nc3 {[%emt 0:00:12]} Be7 {[%emt 0:00:31]} 8. O-O {[%emt 0:00:20]} O-O {[%emt 0:00:11]} 9. h3 {[%emt 0:02:24]} Bb7 {[%emt 0:05:21] C50: Hungarian Defence and Giuoco Pianissimo.} 10. Bf4 {[%emt 0:06:31]} d5 {[%emt 0:02:24]} 11. Bd3 {[%emt 0:19:42] [#]} d4 $146 {[%emt 0:02:58] White has an edge.} ({Predecessor:} 11... dxe4 12. Nxe4 Nxe4 13. Bxe4 Bd6 14. Qf3 Qf6 15. Bxd6 Qxf3 16. Bxf3 cxd6 17. Rfd1 d5 {½-½ (30) Cuker,D-Zrost,R Slovakia 2000}) 12. e5 {[%emt 0:07:52]} (12. Na4 $14) 12... Nd5 {[%emt 0:05:26]} ({Better is} 12... dxc3 $11 13. exf6 Bxf6) 13. Nxd5 $14 {[%emt 0:00:29]} (13. Qh5 $2 g6 14. Qf3 dxc3 $19) 13... Qxd5 {[%emt 0:00:24]} 14. Qg4 {[%emt 0:02:59]} (14. Qh5 g6 15. Qe2 c5 $14) ({White should play} 14. Re1 $16) 14... Bc8 {[%emt 0:08:20]} (14... c5 $14) 15. Qg3 $16 {[%emt 0:00:18] [#] Hoping for Bh6.} Qe6 {[%emt 0:02:56] Prevents Bh6.} 16. Qf3 {[%emt 0:08:22]} Bd7 {[%emt 0:01:18]} (16... Rd8 $142) 17. b3 {[%emt 0:04:50]} (17. Qe4 $16 {[%csl Gd3][%cal Re4h7]} Qg6 18. Qxd4) 17... c5 $14 {[%emt 0:04:27]} 18. Be4 {[%emt 0:02:30]} Rab8 {[%emt 0:08:05]} 19. Rfd1 {[%emt 0:01:10]} Rb6 {[%emt 0:01:51]} (19... Bb5 $14) 20. c3 $16 {[%emt 0:02:00]} ({But not} 20. Qh5 $6 g6 21. Qe2 Re8 $14) 20... dxc3 {[%emt 0:03:17]} 21. Qd3 {[%emt 0:00:30]} Bb5 {[%emt 0:01:09]} 22. Qxc3 {[%emt 0:03:01]} Bc6 {[%emt 0:06:17]} 23. Bc2 {[%emt 0:04:46] White is more active.} (23. Bd3 $16) 23... Rb4 $14 {[%emt 0:05:12]} 24. Be3 {[%emt 0:02:42]} c4 {[%emt 0:07:01]} (24... Rh4 $1 $11 25. Bc1 (25. Bxc5 Bxc5 26. Qxc5 Bxg2 $17) 25... c4) 25. Bxa7 {[%emt 0:01:07]} Ra8 {[%emt 0:04:05]} 26. Be3 $36 {[%emt 0:00:27][%cal Oe3g5][%mdl 2048] White fights for an advantage.} cxb3 {[%emt 0:00:30]} 27. axb3 {[%emt 0:01:19]} Rxa1 {[%emt 0:02:29]} 28. Qxa1 {[%emt 0:01:05]} Bd5 {[%emt 0:06:05]} (28... Rb5 $14) 29. Qc3 {[%emt 0:03:40]} Rb7 $2 {[%emt 0:04:53][%mdl 8192]} (29... Bxb3 $2 30. Qxc7 Bd5 {[#]} 31. Bf5 $1 {[%mdl 512]} Qxf5 32. Qxe7 $18) (29... c6 $16) 30. Qd3 $18 {[%emt 0:00:43]} Qg6 {[%emt 0:01:04]} 31. Qxg6 {[%emt 0:01:23] Weighted Error Value: White=0.22 (precise) /Black=0.43} 1-0

[Event "55th Biel Festival ATO 2022"]
[Site "Biel"]
[Date "2022.07.18"]
[Round "5.8"]
[White "Smeets Kobe"]
[Black "Maitre, Fabien"]
[Result "1-0"]
[ECO "B38"]
[WhiteElo "1963"]
[BlackElo "1837"]
[Annotator "TA"]
[PlyCount "43"]
[EventDate "2022.07.13"]
[EventType "swiss"]
[EventCountry "SUI"]
[SourceTitle "playchess.com"]
[Source "ChessBase"]
[SourceQuality "1"]
[TimeControl "40/5400+30:1800+30"]

{[%evp 22,43,320,321,348,266,264,259,266,263,271,251,255,240,259,254,329,318,343,317,314,302,362,356]} 1. e4 {[%emt 0:00:03]} c5 {[%emt 0:00:08]} 2. Nf3 {[%emt 0:00:12]} Nc6 {[%emt 0:00:08]} 3. d4 {[%emt 0:00:10]} cxd4 {[%emt 0:00:06]} 4. Nxd4 {[%emt 0:00:04]} g6 {[%emt 0:00:07]} 5. c4 {[%emt 0:00:12]} Nf6 {[%emt 0:01:27]} 6. Nc3 {[%emt 0:00:18]} Bg7 {[%emt 0:00:10]} 7. Be3 {[%emt 0:00:13]} O-O {[%emt 0:06:12]} 8. Be2 {[%emt 0:00:03]} d6 {[%emt 0:02:00]} 9. O-O {[%emt 0:00:06]} Ng4 {[%emt 0:12:57]} 10. Bxg4 {[%emt 0:07:39]} Bxg4 {[%emt 0:00:10]} 11. Nxc6 {[%emt 0:00:51][%cal Bd4c6,Bc6d8,Bd8b7][%mdl 32]} Bxd1 {[%emt 0:03:00]} 12. Nxd8 {[%emt 0:00:15]} Bxc3 {[%emt 0:02:28] B38: Sicilian: Maroczy Bind with 5...Bg7 and 7...0-0.} 13. bxc3 {[%emt 0:00:25]} Be2 {[%emt 0:00:25]} 14. Rfe1 {[%emt 0:00:10]} ({Don't take} 14. Nxb7 Bxf1 15. Kxf1 (15. Rxf1 Rfc8 $16) 15... Rfc8 $18) 14... Bxc4 {[%emt 0:00:55] White has a decisive advantage.} 15. Nxb7 {[%emt 0:00:13]} a5 {[%emt 0:00:44] [#]} 16. Bd4 $146 {[%emt 0:15:16]} ({Predecessor:} 16. f3 Rfb8 17. Reb1 Ra6 18. Rb2 f5 19. e5 Bd5 20. Rab1 dxe5 21. Nc5 Rxb2 22. Rxb2 {1-0 (30) Martin Ojeda,J (2335)-Ubeira Rego,M Nigran 1994}) 16... Rfb8 {[%emt 0:01:20]} 17. Rab1 {[%emt 0:00:43]} Bxa2 {[%emt 0:00:57]} 18. Ra1 {[%emt 0:01:32]} Rxb7 {[%emt 0:01:41]} 19. Rxa2 {[%emt 0:00:05]} a4 {[%emt 0:00:02]} 20. Ra3 {[%emt 0:00:38]} Rb3 {[%emt 0:00:29]} 21. Rea1 {[%emt 0:04:43] [#] Strongly threatening Rxb3.} Rab8 {[%emt 0:00:37] ( -> ...Rb1+)} 22. Kf1 {[%emt 0:01:10] Weighted Error Value: White=0.20 (precise) /Black=0.21 (precise)} 1-0

[Event "55th Biel Festival ATO 2022"]
[Site "Biel"]
[Date "2022.07.18"]
[Round "5.9"]
[White "Eschmann Pascal"]
[Black "Carey, Michael"]
[Result "0-1"]
[ECO "A57"]
[WhiteElo "1944"]
[BlackElo "1816"]
[Annotator "TA"]
[PlyCount "126"]
[EventDate "2022.07.13"]
[EventType "swiss"]
[EventCountry "SUI"]
[SourceTitle "playchess.com"]
[Source "ChessBase"]
[SourceQuality "1"]
[TimeControl "40/5400+30:1800+30"]

{[%evp 12,126,45,56,39,46,90,93,100,77,87,66,69,33,45,11,23,-18,44,37,51,20,64,68,65,-18,-33,-58,-60,-85,-66,-163,-179,-172,-154,-195,-194,-195,-188,-234,-195,-230,-187,-221,-198,-192,-164,-241,-240,-245,-245,-238,-240,-379,-379,-391,-391,-403,-397,-501,-472,-608,-494,-590,-591,-587,-573,-562,-555,-629,-616,-824,-817,-848,-828,-842,-833,-789,-806,-817,-789,-855,-879,-1005,-966,-1693,-1694,-1608,-1308,-1621,-1510,-1420,-1485,-1267,-1057,-1113,-817,-785,-636,-6874,-455,-12835,-12835,-12836,-12836,-6793,-5085,-12843,-12843,-12844,-12842,-12843,-12843,-12841,-12840,-12847,-12847]} 1. d4 {[%emt 0:00:04]} c5 {[%emt 0:00:02]} 2. d5 {[%emt 0:00:59]} Nf6 {[%emt 0:00:06]} 3. c4 {[%emt 0:00:54]} b5 {[%emt 0:00:06]} 4. cxb5 {[%emt 0:02:13]} a6 {[%emt 0:00:02]} 5. Nc3 {[%emt 0:00:46]} axb5 {[%emt 0:01:15]} 6. Nxb5 {[%emt 0:01:11]} Qa5+ {[%emt 0:05:03]} 7. Nc3 {[%emt 0:01:42]} g6 {[%emt 0:00:20] A57: Benko/Volga Gambit.} 8. Bd2 {[%emt 0:00:10]} Qb6 {[%emt 0:04:46]} 9. e4 {[%emt 0:02:42]} d6 {[%emt 0:00:07] [#] White is better.} 10. Bc4 $146 {[%emt 0:01:50]} ({Predecessor:} 10. Nf3 Bg7 11. Be2 O-O 12. Rb1 Nbd7 13. O-O Ng4 14. Qc2 Nge5 15. Nxe5 Nxe5 16. Be3 {0-1 (25) Zechel,R (1552)-Maly,J (1666) Hanerau 2015}) 10... Bg7 {[%emt 0:01:48]} (10... Qxb2 $2 11. Rb1 Qa3 12. Nb5 $18) 11. Nge2 {[%emt 0:03:09]} Ba6 {[%emt 0:03:14]} 12. Bxa6 {[%emt 0:06:57]} Nxa6 {[%emt 0:01:04]} 13. Qa4+ {[%emt 0:05:41]} Nd7 $1 {[%emt 0:04:00]} 14. O-O {[%emt 0:03:11]} Nc7 {[%emt 0:04:09]} ({Black should play} 14... Qxb2 $11 15. Qd1 Nb4) 15. Qc2 $14 {[%emt 0:02:49]} O-O {[%emt 0:00:27]} 16. Rab1 {[%emt 0:04:03]} Na6 {[%emt 0:12:33]} 17. a3 {[%emt 0:02:59] Against Nb4} Rfb8 {[%emt 0:03:49]} 18. Na4 {[%emt 0:04:11]} (18. b3 $14) 18... Qb3 $11 {[%emt 0:07:09]} 19. Qxb3 {[%emt 0:04:25]} Rxb3 {[%emt 0:00:04]} 20. Nc1 {[%emt 0:00:56] [#] Black converts the advantage convincingly.} Rb7 {[%emt 0:03:18] Black is more active.} 21. Bc3 {[%emt 0:02:20]} (21. Nc3 $15) 21... Nc7 $19 {[%emt 0:02:57][%mdl 64] Discovered Attack} 22. Bxg7 {[%emt 0:01:36][%cal Oa4c3]} Rxa4 {[%emt 0:02:35]} (22... Kxg7 23. Nc3 $11) 23. Bc3 {[%emt 0:02:28]} Rxe4 {[%emt 0:01:55]} 24. Rd1 {[%emt 0:00:20]} Nb6 {[%emt 0:02:00]} 25. Re1 {[%emt 0:07:56]} (25. Na2 {might work better.}) 25... Rxe1+ {[%emt 0:00:36]} ({Don't go for} 25... Nbxd5 $2 26. Ba5 (26. Rxe4 $2 Nxc3 27. bxc3 Rxb1 $19) 26... Ra4 27. Bxc7) 26. Bxe1 {[%emt 0:00:30]} Ncxd5 {[%emt 0:03:33]} (26... Nbxd5 27. f3) 27. Nd3 {[%emt 0:05:50]} c4 {[%emt 0:07:25]} 28. Nb4 {[%emt 0:01:38]} Nxb4 {[%emt 0:00:12]} 29. Bxb4 {[%emt 0:00:16][%mdl 4096] Endgame KRB-KRN} (29. axb4 $142 Nd5 30. Rc1) 29... Nd5 {[%emt 0:00:47]} 30. Be1 {[%emt 0:01:42]} Rb3 {[%emt 0:10:37]} ({Not} 30... c3 31. b4) 31. Rc1 {[%emt 0:02:09]} Nb6 {[%emt 0:05:19] Threatens to win with ...d5.} ({And not} 31... Rxb2 32. Rxc4 Ra2 33. a4) 32. Rc2 {[%emt 0:02:44]} (32. a4 {was worth a try.}) 32... d5 {[%emt 0:00:18]} 33. Kf1 {[%emt 0:01:39]} Na4 {[%emt 0:00:59]} 34. Bb4 {[%emt 0:02:30]} e6 {[%emt 0:02:09]} 35. Ke2 {[%emt 0:01:15]} Nxb2 {[%emt 0:02:33] Black is clearly winning.} 36. Rc3 {[%emt 0:04:30]} Na4 {[%emt 0:01:26]} 37. Rc2 {[%emt 0:07:47]} f6 {[%emt 0:00:25]} 38. Kd2 {[%emt 0:03:28]} Kf7 {[%emt 0:00:33]} 39. Ke2 {[%emt 0:00:15]} Ke8 {[%emt 0:01:03]} 40. Rd2 {[%emt 0:02:43]} Kd7 {[%emt 0:02:04]} 41. f4 {[%emt 0:30:25]} Nc3+ {[%emt 0:36:13]} 42. Bxc3 {[%emt 0:01:10]} Rxc3 {[%emt 0:00:08] KR-KR} 43. Ra2 {[%emt 0:00:04]} Kc6 {[%emt 0:02:14]} 44. a4 {[%emt 0:00:12]} Kb6 {[%emt 0:00:00]} 45. Kd2 {[%emt 0:00:00]} Rb3 {[%emt 0:00:00]} 46. a5+ {[%emt 0:00:00]} Ka6 {[%emt 0:00:00]} 47. Ra4 {[%emt 0:00:00]} e5 {[%emt 0:00:00]} 48. fxe5 {[%emt 0:00:00]} fxe5 {[%emt 0:00:00]} 49. Ra2 {[%emt 0:00:00]} Rb5 {[%emt 0:00:00] [#] Strongly threatening ...d4.} 50. Kc3 {[%emt 0:00:00]} Rxa5 {[%emt 0:00:00]} 51. Re2 {[%emt 0:00:00]} Ra3+ {[%emt 0:00:00]} 52. Kb4 {[%emt 0:00:00]} Rb3+ {[%emt 0:00:00]} 53. Kc5 {[%emt 0:00:00]} Rb5+ {[%emt 0:00:00]} 54. Kc6 {[%emt 0:00:00]} d4 {[%emt 0:00:00] Hoping for ...c3.} 55. Ra2+ {[%emt 0:00:00]} Ra5 {[%emt 0:00:00]} 56. Rb2 {[%emt 0:00:00]} (56. Rf2 $142 Ra3 57. g3) 56... c3 {[%emt 0:00:00]} 57. Rb6+ {[%emt 0:00:38]} Ka7 {[%emt 0:00:00]} 58. Rb7+ {[%emt 0:00:51]} Ka8 {[%emt 0:00:00]} 59. Rxh7 {[%emt 0:02:36]} Ra6+ {[%emt 0:00:00]} 60. Kb5 {[%emt 0:00:35]} Rf6 {[%emt 0:00:00] ( -> ...c2)} 61. Rc7 {[%emt 0:05:43]} Kb8 {[%emt 0:00:00]} 62. Rc5 {[%emt 0:01:53]} Kb7 {[%emt 0:02:00]} 63. Rxe5 {[%emt 0:02:14]} Rf5 {[%emt 0:01:21] Weighted Error Value: White=0.45/Black=0.13 (very precise)} 0-1